fUST/lending_fUST_20250105
["ID","MTS","AMOUNT","RATE_DAILY","PERIOD"]
[347655223,1736025048601,-165.15366,0.00019452,2]
[347655224,1736025048611,-500.0,0.00019452,3]
[347655225,1736025048621,-500.0,0.00019452,3]
[347655226,1736025048631,-500.0,0.00019452,3]
[347655227,1736025048642,-500.0,0.00019452,3]
[347655228,1736025048652,-2004.04,0.00019452,3]
[347655229,1736025048661,-500.0,0.00019452,3]
[347655230,1736025048672,-500.0,0.00019452,3]
[347655231,1736025048681,-567.49,0.00019452,3]
[347655232,1736025048692,-151.0,0.00019452,2]
[347655233,1736025048701,-500.0,0.00019452,3]
[347655234,1736025048716,-1825.64,0.00019452,3]
[347655235,1736025048731,-151.0,0.00019452,2]
[347655236,1736025048745,-151.0,0.00019452,2]
[347655237,1736025048759,-151.0,0.00019452,2]
[347655238,1736025048771,-500.0,0.00019452,3]
[347655239,1736025048783,-500.0,0.00019452,3]
[347655240,1736025048796,-500.0,0.00019452,3]
[347655241,1736025048809,-500.0,0.00019452,3]
[347655242,1736025048823,-2397.79,0.00019452,3]
[347655243,1736025048836,-1238.1,0.00019452,3]
[347655244,1736025048849,-1143.57,0.00019452,3]
[347655245,1736025048862,-500.0,0.00019452,3]
[347655246,1736025048875,-500.0,0.00019452,3]
[347655247,1736025048889,-500.0,0.00019452,3]
[347655248,1736025048901,-5561.67,0.00019452,3]
[347655249,1736025048912,-10412.97,0.00019452,3]
[347655250,1736025048925,-610.29,0.00019452,3]
[347655251,1736025048936,-500.0,0.00019452,3]
[347655252,1736025048948,-470.31144889,0.00019452,3]
[347655253,1736025048961,-2588.43,0.00019452,3]
[347655254,1736025048973,-2298.23,0.00019452,3]
[347655255,1736025048985,-500.0,0.00019452,3]
[347655256,1736025048995,-512.04,0.00019452,3]
[347655257,1736025049006,-1448.98,0.00019452,3]
[347655258,1736025049019,-500.0,0.00019452,3]
[347655259,1736025049031,-500.0,0.00019452,3]
[347655260,1736025049044,-500.0,0.00019452,3]
[347655261,1736025049056,-500.0,0.00019452,3]
[347655262,1736025049069,-151.0,0.00019452,2]
[347655263,1736025049084,-151.0,0.00019452,2]
[347655264,1736025049097,-151.0,0.00019452,2]
[347655265,1736025049110,-175.759524,0.00019452,2]
[347655266,1736025049124,-151.0,0.00019452,2]
[347655267,1736025049137,-595.75,0.00019452,3]
[347655268,1736025049147,-151.0,0.00019452,2]
[347655269,1736025049158,-4959.36,0.00019452,3]
[347655270,1736025049168,-151.0,0.00019452,2]
[347655271,1736025049179,-151.0,0.00019452,2]
[347655272,1736025049193,-1523.01,0.00019452,3]
[347655273,1736025049207,-500.0,0.00019452,3]
[347655274,1736025049220,-500.0,0.00019473,2]
[347655275,1736025049231,-2955.0,0.00019539,2]
[347655276,1736025049242,-5080.15491587,0.0001959,2]
[347655277,1736025049253,-651.2478,0.00019624,2]
[347655278,1736025049266,-651.2478,0.00019624,2]
[347655279,1736025049279,-916.332105,0.00019624,2]
[347655280,1736025049290,-916.332105,0.00019624,2]
[347655281,1736025049300,-151.0,0.00019624,2]
[347655282,1736025049312,-207.431774,0.00019624,2]
[347655283,1736025049324,-151.0,0.00019624,2]
[347655284,1736025049335,-482.108176,0.00019624,2]
[347655285,1736025049347,-151.0,0.00019624,2]
[347655286,1736025049359,-823.0,0.00019663,2]
[347655287,1736025049370,-2000.0,0.000197,2]
[347655288,1736025049382,-2000.0,0.000197,2]
[347655289,1736025049394,-2000.0,0.000197,2]
[347655290,1736025049405,-150.0,0.00019706,2]
[347655291,1736025049416,-1000.0,0.00019721,2]
[347655292,1736025049427,-160.0,0.00019725,2]
[347655293,1736025049439,-196.622651,0.00019725,2]
[347655294,1736025049450,-196.622651,0.00019725,2]
[347655295,1736025049462,-151.0,0.00019725,2]
[347655296,1736025049473,-2460.795115,0.00019725,2]
[347655297,1736025049485,-2460.795115,0.00019725,2]
[347655298,1736025049496,-318.035145,0.00019725,2]
[347655299,1736025049508,-318.035145,0.00019725,2]
[347655300,1736025049519,-400.217463,0.00019725,2]
[347655301,1736025049530,-400.217463,0.00019725,2]
[347655302,1736025049541,-249.52,0.00019725,2]
[347655303,1736025049554,-150.06,0.00019725,2]
[347655304,1736025049565,-500.0,0.00019726,3]
[347655305,1736025049577,-151.0,0.00019726,2]
[347655306,1736025049588,-151.0,0.00019726,2]
[347655307,1736025049600,-151.0,0.00019726,2]
[347655308,1736025049611,-151.0,0.00019726,2]
[347655309,1736025049622,-151.0,0.00019726,2]
[347655310,1736025049634,-151.0,0.00019726,2]
[347655311,1736025049645,-646.74,0.00019726,3]
[347655312,1736025049656,-151.0,0.00019726,2]
[347655313,1736025049669,-151.0,0.00019726,2]
[347655314,1736025049681,-500.0,0.00019726,3]
[347655315,1736025049691,-500.0,0.00019726,3]
[347655316,1736025049702,-512.33844887,0.00019726,3]
[347655317,1736025049713,-500.0,0.00019726,3]
[347655318,1736025049724,-500.0,0.00019726,3]
[347655319,1736025049736,-500.0,0.00019726,3]
[347655320,1736025049747,-761.936917,0.00019726,2]
[347655321,1736025049758,-761.936917,0.00019726,2]
[347655322,1736025049768,-761.936917,0.00019726,2]
[347655323,1736025049779,-761.936917,0.00019726,2]
[347655324,1736025049790,-761.936917,0.00019726,2]
[347655325,1736025049800,-761.936917,0.00019726,2]
[347655326,1736025049813,-500.0,0.00019726,3]
[347655327,1736025049823,-500.0,0.00019726,3]
[347655328,1736025049833,-500.0,0.00019726,3]
[347655329,1736025049844,-558.6,0.00019726,3]
[347655330,1736025049855,-173.32021627,0.00019726,3]
[347655331,1736025049866,-500.0,0.00019726,3]
[347655332,1736025049877,-500.0,0.00019726,3]
[347655333,1736025049888,-500.0,0.00019726,3]
[347655334,1736025049899,-500.0,0.00019726,3]
[347655335,1736025049911,-151.0,0.00019726,2]
[347655336,1736025049922,-151.0,0.00019726,2]
[347655337,1736025049934,-151.0,0.00019726,2]
[347655338,1736025049945,-500.0,0.00019726,3]
[347655339,1736025049956,-500.0,0.00019726,3]
[347655340,1736025049967,-500.0,0.00019726,3]
[347655341,1736025049978,-344.25921575,0.00019726,3]
[347655342,1736025049989,-290.45810434,0.00019726,3]
[347655343,1736025050000,-500.0,0.00019726,3]
[347655344,1736025050012,-500.0,0.00019726,3]
[347655345,1736025050024,-500.0,0.00019726,3]
[347655346,1736025050037,-500.0,0.00019726,3]
[347655347,1736025050049,-500.0,0.00019726,3]
[347655348,1736025050060,-352.59987459,0.00019726,3]
[347655349,1736025050071,-196.622651,0.00019726,2]
[347655350,1736025050085,-500.0,0.00019726,3]
[347655351,1736025050098,-196.622651,0.00019726,2]
[347655352,1736025050108,-196.622651,0.00019726,2]
[347655353,1736025050121,-196.622651,0.00019726,2]
[347655354,1736025050133,-196.622651,0.00019726,2]
[347655355,1736025050144,-196.622651,0.00019726,2]
[347655356,1736025050155,-151.0,0.00019726,2]
[347655357,1736025050167,-151.0,0.00019726,2]
[347655358,1736025050178,-151.0,0.00019726,2]
[347655359,1736025050190,-564.01,0.00019726,3]
[347655360,1736025050200,-151.0,0.00019726,2]
[347655361,1736025050211,-151.0,0.00019726,2]
[347655362,1736025050222,-151.0,0.00019726,2]
[347655363,1736025050233,-500.0,0.00019726,3]
[347655364,1736025050244,-500.0,0.00019726,3]
[347655365,1736025050255,-500.0,0.00019726,3]
[347655366,1736025050266,-151.0,0.00019726,2]
[347655367,1736025050277,-151.0,0.00019726,2]
[347655368,1736025050288,-151.0,0.00019726,2]
[347655369,1736025050299,-500.0,0.00019726,3]
[347655370,1736025050311,-500.0,0.00019726,3]
[347655371,1736025050322,-500.0,0.00019726,3]
[347655372,1736025050331,-500.0,0.00019726,3]
[347655373,1736025050341,-500.0,0.00019726,3]
[347655374,1736025050350,-500.0,0.00019726,3]
[347655375,1736025050360,-500.0,0.00019726,3]
[347655376,1736025050369,-500.0,0.00019726,3]
[347655377,1736025050379,-500.0,0.00019726,3]
[347655378,1736025050388,-500.0,0.00019726,3]
[347655379,1736025050397,-500.0,0.00019726,3]
[347655380,1736025050407,-651.2478,0.00019726,2]
[347655381,1736025050416,-651.2478,0.00019726,2]
[347655382,1736025050426,-651.2478,0.00019726,2]
[347655383,1736025050435,-651.2478,0.00019726,2]
[347655384,1736025050445,-651.2478,0.00019726,2]
[347655385,1736025050454,-651.2478,0.00019726,2]
[347655386,1736025050463,-916.332105,0.00019726,2]
[347655387,1736025050473,-916.332105,0.00019726,2]
[347655388,1736025050482,-916.332105,0.00019726,2]
[347655389,1736025050492,-848.99,0.00019726,3]
[347655390,1736025050502,-517.5372959,0.00019726,3]
[347655391,1736025050761,-916.332105,0.00019726,2]
[347655392,1736025050776,-916.332105,0.00019726,2]
[347655393,1736025050785,-916.332105,0.00019726,2]
[347655394,1736025050794,-500.0,0.00019726,3]
[347655395,1736025050804,-500.0,0.00019726,3]
[347655396,1736025050814,-500.0,0.00019726,3]
[347655397,1736025050824,-500.0,0.00019726,3]
[347655398,1736025050833,-500.0,0.00019726,3]
[347655399,1736025050842,-151.0,0.00019726,2]
[347655400,1736025050852,-151.0,0.00019726,2]
[347655401,1736025050862,-151.0,0.00019726,2]
[347655402,1736025050871,-500.0,0.00019726,2]
[347655403,1736025050881,-1069.51,0.00019726,3]
[347655404,1736025050891,-500.0,0.00019726,3]
[347655405,1736025050900,-500.0,0.00019726,3]
[347655406,1736025050910,-500.0,0.00019726,3]
[347655407,1736025050919,-500.0,0.00019726,3]
[347655408,1736025050929,-500.0,0.00019726,3]
[347655409,1736025050938,-500.0,0.00019726,3]
[347655410,1736025050947,-500.0,0.00019726,3]
[347655411,1736025050957,-151.0,0.00019726,2]
[347655412,1736025050966,-151.0,0.00019726,2]
[347655413,1736025050975,-151.0,0.00019726,2]
[347655414,1736025050985,-151.0,0.00019726,2]
[347655415,1736025050995,-500.0,0.00019726,3]
[347655416,1736025051004,-500.0,0.00019726,3]
[347655417,1736025051014,-500.0,0.00019726,3]
[347655418,1736025051024,-151.0,0.00019726,2]
[347655419,1736025051034,-299.59272,0.00019726,2]
[347655420,1736025051044,-500.0,0.00019726,3]
[347655421,1736025051053,-979.15,0.00019726,3]
[347655422,1736025051063,-198.421301,0.00019726,2]
[347655423,1736025051073,-198.421301,0.00019726,2]
[347655424,1736025051085,-198.421301,0.00019726,2]
[347655425,1736025051094,-198.421301,0.00019726,2]
[347655426,1736025051103,-538.32,0.00019726,3]
[347655427,1736025051112,-500.0,0.00019726,3]
[347655428,1736025051121,-198.421301,0.00019726,2]
[347655429,1736025051131,-198.421301,0.00019726,2]
[347655430,1736025051141,-198.421301,0.00019726,2]
[347655431,1736025051150,-198.421301,0.00019726,2]
[347655432,1736025051160,-151.0,0.00019726,2]
[347655433,1736025051169,-151.0,0.00019726,2]
[347655434,1736025051179,-151.0,0.00019726,2]
[347655435,1736025051188,-606.22587995,0.00019726,3]
[347655436,1736025051198,-707.11,0.00019726,3]
[347655437,1736025051208,-500.0,0.00019726,3]
[347655438,1736025051218,-1096.8,0.00019726,3]
[347655439,1736025051227,-500.0,0.00019726,3]
[347655440,1736025051236,-500.0,0.00019726,3]
[347655441,1736025051248,-500.0,0.00019726,3]
[347655442,1736025051259,-500.0,0.00019726,3]
[347655443,1736025051269,-902.85,0.00019726,3]
[347655444,1736025051278,-1206.85,0.00019726,3]
[347655445,1736025051287,-958.65,0.00019726,3]
[347655446,1736025051297,-500.0,0.00019726,3]
[347655447,1736025051307,-500.0,0.00019726,3]
[347655448,1736025051319,-751.08,0.00019726,3]
[347655449,1736025051329,-500.0,0.00019726,3]
[347655450,1736025051338,-623.54,0.00019726,3]
[347655451,1736025051347,-932.35,0.00019726,3]
[347655452,1736025051357,-587.88,0.00019726,3]
[347655453,1736025051366,-500.0,0.00019726,3]
[347655454,1736025051376,-500.0,0.00019726,3]
[347655455,1736025051385,-1527.28,0.00019726,3]
[347655456,1736025051394,-500.0,0.00019726,3]
[347655457,1736025051404,-567.18,0.00019726,3]
[347655458,1736025051413,-508.17797233,0.00019726,3]
[347655459,1736025051423,-500.0,0.00019726,3]
[347655460,1736025051433,-1042.0,0.00019726,3]
[347655461,1736025051442,-500.0,0.00019726,3]
[347655462,1736025051451,-500.0,0.00019726,3]
[347655463,1736025051461,-500.0,0.00019726,3]
[347655464,1736025051471,-500.0,0.00019726,3]
[347655465,1736025051480,-832.55,0.00019726,3]
[347655466,1736025051490,-1371.27,0.00019726,3]
[347655467,1736025051499,-500.0,0.00019726,3]
[347655468,1736025051509,-339.609977,0.00019726,2]
[347655469,1736025051519,-339.609977,0.00019726,2]
[347655470,1736025051529,-339.609977,0.00019726,2]
[347655471,1736025051538,-339.609977,0.00019726,2]
[347655472,1736025051547,-500.0,0.00019726,3]
[347655473,1736025051557,-847.65,0.00019726,3]
[347655474,1736025051566,-500.0,0.00019726,3]
[347655475,1736025051576,-339.609977,0.00019726,2]
[347655476,1736025051585,-339.609977,0.00019726,2]
[347655477,1736025051594,-500.0,0.00019726,3]
[347655478,1736025051603,-339.609977,0.00019726,2]
[347655479,1736025051613,-339.609977,0.00019726,2]
[347655480,1736025051624,-500.0,0.00019726,3]
[347655481,1736025051634,-500.0,0.00019726,3]
[347655482,1736025051643,-500.0,0.00019726,3]
[347655483,1736025051652,-500.0,0.00019726,3]
[347655484,1736025051662,-500.0,0.00019726,3]
[347655485,1736025051672,-1027.24,0.00019726,3]
[347655486,1736025051683,-500.0,0.00019726,3]
[347655487,1736025051692,-500.0,0.00019726,3]
[347655488,1736025051702,-832.16,0.00019726,3]
[347655489,1736025051712,-860.44,0.00019726,3]
[347655490,1736025051721,-500.0,0.00019726,3]
[347655491,1736025051731,-500.0,0.00019726,3]
[347655492,1736025051740,-500.0,0.00019726,3]
[347655493,1736025051749,-500.0,0.00019726,3]
[347655494,1736025051759,-500.0,0.00019726,3]
[347655495,1736025051769,-500.0,0.00019726,3]
[347655496,1736025051778,-500.0,0.00019726,3]
[347655497,1736025051788,-857.29,0.00019726,3]
[347655498,1736025051797,-515.56389132,0.00019726,3]
[347655499,1736025051807,-500.0,0.00019726,3]
[347655500,1736025051816,-500.0,0.00019726,3]
[347655501,1736025051826,-500.0,0.00019726,3]
[347655502,1736025051836,-1570.19,0.00019726,3]
[347655503,1736025051846,-500.0,0.00019726,3]
[347655504,1736025051855,-500.0,0.00019726,3]
[347655505,1736025051864,-500.0,0.00019726,3]
[347655506,1736025051873,-500.0,0.00019726,3]
[347655507,1736025051884,-500.0,0.00019726,3]
[347655508,1736025051895,-500.0,0.00019726,3]
[347655509,1736025051905,-411.56461443,0.00019726,3]
[347655510,1736025051914,-507.8077194,0.00019726,3]
[347655511,1736025051923,-892.61,0.00019726,3]
[347655512,1736025051935,-500.0,0.00019726,3]
[347655513,1736025051944,-500.0,0.00019726,3]
[347655514,1736025051954,-500.0,0.00019726,3]
[347655515,1736025051964,-500.0,0.00019726,3]
[347655516,1736025051974,-500.0,0.00019726,3]
[347655517,1736025051983,-500.0,0.00019726,3]
[347655518,1736025051992,-938.0,0.00019726,3]
[347655519,1736025052003,-2460.795115,0.00019726,2]
[347655520,1736025052013,-2460.795115,0.00019726,2]
[347655521,1736025052022,-2460.795115,0.00019726,2]
[347655522,1736025052031,-500.0,0.00019726,3]
[347655523,1736025052041,-651.67,0.00019726,3]
[347655524,1736025052051,-2460.795115,0.00019726,2]
[347655525,1736025052061,-2460.795115,0.00019726,2]
[347655526,1736025052070,-2460.795115,0.00019726,2]
[347655527,1736025052081,-528.09,0.00019726,3]
[347655528,1736025052092,-832.77,0.00019726,3]
[347655529,1736025052102,-500.0,0.00019726,3]
[347655530,1736025052111,-500.0,0.00019726,3]
[347655531,1736025052121,-1388.99,0.00019726,3]
[347655532,1736025052132,-500.0,0.00019726,3]
[347655533,1736025052143,-500.0,0.00019726,3]
[347655534,1736025052152,-318.035145,0.00019726,2]
[347655535,1736025052164,-318.035145,0.00019726,2]
[347655536,1736025052174,-482.108176,0.00019726,2]
[347655537,1736025052183,-318.035145,0.00019726,2]
[347655538,1736025052192,-482.108176,0.00019726,2]
[347655539,1736025052202,-482.108176,0.00019726,2]
[347655540,1736025052214,-500.0,0.00019726,3]
[347655541,1736025052224,-318.035145,0.00019726,2]
[347655542,1736025052233,-318.035145,0.00019726,2]
[347655543,1736025052242,-318.035145,0.00019726,2]
[347655544,1736025052252,-151.0,0.00019726,2]
[347655545,1736025052261,-500.0,0.00019726,3]
[347655546,1736025052270,-500.0,0.00019726,3]
[347655547,1736025052279,-500.0,0.00019726,3]
[347655548,1736025052288,-500.0,0.00019726,3]
[347655549,1736025052298,-500.0,0.00019726,3]
[347655550,1736025052307,-500.0,0.00019726,3]
[347655551,1736025052317,-504.38040306,0.00019726,3]
[347655552,1736025052326,-864.883878,0.00019726,2]
[347655553,1736025052335,-864.883878,0.00019726,2]
[347655554,1736025052344,-864.883878,0.00019726,2]
[347655555,1736025052353,-864.883878,0.00019726,2]
[347655556,1736025052363,-864.883878,0.00019726,2]
[347655557,1736025052373,-864.883878,0.00019726,2]
[347655558,1736025052382,-1791.73,0.00019726,3]
[347655559,1736025052391,-546.84,0.00019726,3]
[347655560,1736025052401,-500.0,0.00019726,3]
[347655561,1736025052410,-500.0,0.00019726,3]
[347655562,1736025052420,-500.0,0.00019726,3]
[347655563,1736025052429,-543.96,0.00019726,3]
[347655564,1736025052438,-500.0,0.00019726,3]
[347655565,1736025052448,-400.217463,0.00019726,2]
[347655566,1736025052458,-400.217463,0.00019726,2]
[347655567,1736025052467,-400.217463,0.00019726,2]
[347655568,1736025052476,-666.49,0.00019726,3]
[347655569,1736025052485,-400.217463,0.00019726,2]
[347655570,1736025052495,-400.217463,0.00019726,2]
[347655571,1736025052504,-400.217463,0.00019726,2]
[347655572,1736025052513,-500.0,0.00019726,3]
[347655573,1736025052522,-500.0,0.00019726,3]
[347655574,1736025052531,-518.95,0.00019726,3]
[347655575,1736025052540,-546.26,0.00019726,3]
[347655576,1736025052549,-500.0,0.00019726,3]
[347655577,1736025052558,-500.0,0.00019726,3]
[347655578,1736025052567,-11287.9,0.00019726,3]
[347655579,1736025052577,-500.0,0.00019726,3]
[347655580,1736025052586,-1976.26,0.00019726,3]
[347655581,1736025052595,-500.0,0.00019726,3]
[347655582,1736025052605,-500.0,0.00019726,3]
[347655583,1736025052615,-500.0,0.00019726,3]
[347655584,1736025052625,-500.0,0.00019726,3]
[347655585,1736025052635,-500.0,0.00019726,3]
[347655586,1736025052644,-500.0,0.00019726,3]
[347655587,1736025052655,-3887.77,0.00019726,3]
[347655588,1736025052665,-500.0,0.00019726,3]
[347655589,1736025052674,-543.56,0.00019726,3]
[347655590,1736025052683,-500.0,0.00019726,3]
[347655591,1736025052693,-500.0,0.00019726,3]
[347655592,1736025052702,-2267.53,0.00019726,2]
[347655593,1736025052711,-500.0,0.00019726,3]
[347655594,1736025052720,-500.0,0.00019726,3]
[347655595,1736025052730,-500.0,0.00019726,3]
[347655596,1736025052738,-500.0,0.00019726,3]
[347655597,1736025052748,-5934.35,0.00019726,3]
[347655598,1736025052756,-500.0,0.00019726,3]
[347655599,1736025052766,-529.94,0.00019726,3]
[347655600,1736025052775,-1226.74,0.00019726,3]
[347655601,1736025052784,-1736.46,0.00019726,3]
[347655602,1736025052792,-500.0,0.00019726,3]
[347655603,1736025052801,-500.0,0.00019726,3]
[347655604,1736025052811,-930.43,0.00019726,3]
[347655605,1736025052820,-500.0,0.00019726,3]
[347655606,1736025052829,-504.76,0.00019726,3]
[347655607,1736025052840,-1209.92,0.00019726,3]
[347655608,1736025052850,-932.74,0.00019726,3]
[347655609,1736025052860,-1957.76,0.00019726,3]
[347655610,1736025052869,-500.0,0.00019726,3]
[347655611,1736025052878,-500.0,0.00019726,3]
[347655612,1736025052887,-431.268947,0.00019726,2]
[347655613,1736025052898,-991.32,0.00019726,3]
[347655614,1736025052908,-431.268947,0.00019726,2]
[347655615,1736025052918,-431.268947,0.00019726,2]
[347655616,1736025052929,-431.268947,0.00019726,2]
[347655617,1736025052939,-431.268947,0.00019726,2]
[347655618,1736025052948,-431.268947,0.00019726,2]
[347655619,1736025052960,-431.268947,0.00019726,2]
[347655620,1736025052969,-431.268943,0.00019726,2]
[347655621,1736025052979,-3374.63,0.00019726,3]
[347655622,1736025052989,-993.13,0.00019726,3]
[347655623,1736025052998,-500.0,0.00019726,3]
[347655624,1736025053008,-2178.95,0.00019726,3]
[347655625,1736025053017,-500.0,0.00019726,3]
[347655626,1736025053027,-1414.93,0.00019726,3]
[347655627,1736025053036,-500.0,0.00019726,3]
[347655628,1736025053045,-500.0,0.00019726,3]
[347655629,1736025053055,-2050.61,0.00019726,3]
[347655630,1736025053066,-500.0,0.00019726,3]
[347655631,1736025053075,-500.0,0.00019726,3]
[347655632,1736025053089,-500.0,0.00019726,3]
[347655633,1736025053099,-152.079896,0.00019726,2]
[347655634,1736025053108,-152.079896,0.00019726,2]
[347655635,1736025053118,-152.079896,0.00019726,2]
[347655636,1736025053128,-500.0,0.00019726,3]
[347655637,1736025053138,-152.079896,0.00019726,2]
[347655638,1736025053147,-1322.55,0.00019726,3]
[347655639,1736025053156,-152.079896,0.00019726,2]
[347655640,1736025053166,-152.079896,0.00019726,2]
[347655641,1736025053176,-152.079896,0.00019726,2]
[347655642,1736025053186,-152.079896,0.00019726,2]
[347655643,1736025053196,-500.0,0.00019726,3]
[347655644,1736025053206,-500.0,0.00019726,3]
[347655645,1736025053216,-500.0,0.00019726,3]
[347655646,1736025053226,-500.0,0.00019726,3]
[347655647,1736025053236,-500.0,0.00019726,3]
[347655648,1736025053245,-810.68,0.00019726,3]
[347655649,1736025053254,-500.0,0.00019726,3]
[347655650,1736025053264,-339.6144393,0.00019726,3]
[347655651,1736025053274,-500.0,0.00019726,3]
[347655652,1736025053283,-794.4,0.00019726,3]
[347655653,1736025053293,-500.0,0.00019726,3]
[347655654,1736025053303,-500.0,0.00019726,3]
[347655655,1736025053313,-500.0,0.00019726,3]
[347655656,1736025053323,-500.0,0.00019726,3]
[347655657,1736025053332,-500.0,0.00019726,3]
[347655658,1736025053341,-500.0,0.00019726,3]
[347655659,1736025053350,-1022.94,0.00019726,3]
[347655660,1736025053359,-500.0,0.00019726,3]
[347655661,1736025053369,-566.15,0.00019726,3]
[347655662,1736025053379,-52387.46,0.00019726,3]
[347655663,1736025053388,-500.0,0.00019726,3]
[347655664,1736025053397,-3528.88,0.00019726,3]
[347655665,1736025053407,-544.79,0.00019726,3]
[347655666,1736025053416,-500.0,0.00019726,3]
[347655667,1736025053426,-500.0,0.00019726,3]
[347655668,1736025053435,-710.1,0.00019726,2]
[347655669,1736025053445,-1560.37,0.00019726,3]
[347655670,1736025053454,-500.0,0.00019726,3]
[347655671,1736025053465,-3978.56,0.00019726,3]
[347655672,1736025053474,-154.630622,0.00019726,2]
[347655673,1736025053484,-154.630622,0.00019726,2]
[347655674,1736025053493,-154.630622,0.00019726,2]
[347655675,1736025053503,-154.630622,0.00019726,2]
[347655676,1736025053512,-500.0,0.00019726,3]
[347655677,1736025053522,-154.630622,0.00019726,2]
[347655678,1736025053532,-154.630622,0.00019726,2]
[347655679,1736025053542,-154.630622,0.00019726,2]
[347655680,1736025053551,-154.630622,0.00019726,2]
[347655681,1736025053562,-389.80150154,0.00019726,3]
[347655682,1736025053572,-500.3,0.00019726,3]
[347655683,1736025053581,-500.0,0.00019726,3]
[347655684,1736025053591,-500.0,0.00019726,3]
[347655685,1736025053600,-500.0,0.00019726,3]
[347655686,1736025053610,-500.0,0.00019726,3]
[347655687,1736025053619,-500.0,0.00019726,3]
[347655688,1736025053629,-2004.04,0.00019726,3]
[347655689,1736025053639,-500.0,0.00019726,3]
[347655690,1736025053648,-500.0,0.00019726,3]
[347655691,1736025053658,-567.49,0.00019726,3]
[347655692,1736025053667,-500.0,0.00019726,3]
[347655693,1736025053677,-1825.64,0.00019726,3]
[347655694,1736025053687,-151.0,0.00019726,2]
[347655695,1736025053696,-151.0,0.00019726,2]
[347655696,1736025053706,-500.0,0.00019726,3]
[347655697,1736025053715,-151.0,0.00019726,2]
[347655698,1736025053725,-284.794078,0.00019726,2]
[347655699,1736025053735,-500.0,0.00019726,3]
[347655700,1736025053745,-500.0,0.00019726,3]
[347655701,1736025053754,-500.0,0.00019726,3]
[347655702,1736025053764,-2397.79,0.00019726,3]
[347655703,1736025053773,-1238.1,0.00019726,3]
[347655704,1736025053782,-1143.57,0.00019726,3]
[347655705,1736025053793,-500.0,0.00019726,3]
[347655706,1736025053802,-500.0,0.00019726,3]
[347655707,1736025053813,-203.61038662,0.00019726,3]
[347655708,1736025053823,-5561.67,0.00019726,3]
[347655709,1736025053832,-610.29,0.00019726,3]
[347655710,1736025053841,-502.47496454,0.00019726,3]
[347655711,1736025053852,-10412.97,0.00019726,3]
[347655712,1736025053862,-2588.43,0.00019726,3]
[347655713,1736025053871,-2298.23,0.00019726,3]
[347655714,1736025053881,-500.0,0.00019726,3]
[347655715,1736025053891,-512.04,0.00019726,3]
[347655716,1736025054039,-1448.98,0.00019726,3]
[347655717,1736025054050,-500.0,0.00019726,3]
[347655718,1736025054059,-500.0,0.00019726,3]
[347655719,1736025054069,-500.0,0.00019726,3]
[347655720,1736025054079,-500.0,0.00019726,3]
[347655721,1736025054093,-595.75,0.00019726,3]
[347655722,1736025054103,-4959.36,0.00019726,3]